[Event "January 9 Early 2024"]
[Site "https://www.chess.com"]
[Date "2024.01.11"]
[Round "5"]
[White "Janaszak, Dawid"]
[Black "Dmitrenko, Viktor"]
[Result "0-1"]
[Board "20"]
[TimeControl "180+1"]
[WhiteFideId "1119206"]
[BlackFideId "14110270"]
[WhiteElo "2612"]
[BlackElo "2458"]
[WhiteTeam "POL"]
[BlackTeam "UKR"]
[WhiteClock "0:01:48"]
[BlackClock "0:00:56"]

1. e4 {[%clk 0:03:00]}  e6 {[%clk 0:03:00]} 2. b3 {[%clk 0:02:59]}  d5 {[%clk 0:03:01]} 3. Bb2 {[%clk 0:02:59]}  dxe4 {[%clk 0:02:56]} 4. Nc3 {[%clk 0:02:59]}  Nf6 {[%clk 0:02:44]} 5. Qe2 {[%clk 0:02:59]}  Be7 {[%clk 0:02:39]} 6. O-O-O {[%clk 0:02:56]}  Nc6 {[%clk 0:02:34]} 7. Nxe4 {[%clk 0:02:54]}  O-O {[%clk 0:02:32]} 8. Nf3 {[%clk 0:02:53]}  a5 {[%clk 0:02:24]} 9. a4 {[%clk 0:02:52]}  b6 {[%clk 0:02:14]} 10. d4 {[%clk 0:02:46]}  Nb4 {[%clk 0:02:08]} 11. Ne5 {[%clk 0:02:33]}  Bb7 {[%clk 0:01:58]} 12. Ng5 {[%clk 0:02:29]}  Nfd5 {[%clk 0:01:49]} 13. h4 {[%clk 0:02:23]}  Na2+ {[%clk 0:01:45]} 14. Kd2 {[%clk 0:02:19]}  Bb4+ {[%clk 0:01:42]} 15. c3 {[%clk 0:02:07]}  Ndxc3 {[%clk 0:01:40]} 16. Qh5 {[%clk 0:02:03]}  Qxd4+ {[%clk 0:01:33]} 17. Bd3 {[%clk 0:02:03]}  Qxf2+ {[%clk 0:01:21]} 18. Be2 {[%clk 0:01:56]}  Nxe2+ {[%clk 0:01:15]} 19. Kd3 {[%clk 0:01:55]}  Rad8+ {[%clk 0:00:56]} 20. Bd4 {[%clk 0:01:48]} 0-1

[Event "January 9 Early 2024"]
[Site "https://www.chess.com"]
[Date "2024.01.11"]
[Round "5"]
[White "Manukian, Artak"]
[Black "Zhu, Hengyi"]
[Result "0-1"]
[Board "22"]
[TimeControl "180+1"]
[WhiteFideId "13301373"]
[BlackFideId "8611211"]
[WhiteElo "2501"]
[BlackElo "2786"]
[WhiteTeam "ARM"]
[BlackTeam "CHN"]
[WhiteClock "0:01:23"]
[BlackClock "0:01:50"]

1. e4 {[%clk 0:02:53]}  e6 {[%clk 0:02:58]} 2. d4 {[%clk 0:02:53]}  d5 {[%clk 0:02:59]} 3. e5 {[%clk 0:02:54]}  c5 {[%clk 0:02:59]} 4. c3 {[%clk 0:02:55]}  Nc6 {[%clk 0:02:59]} 5. Nf3 {[%clk 0:02:56]}  Qb6 {[%clk 0:02:59]} 6. a3 {[%clk 0:02:56]}  Nh6 {[%clk 0:02:58]} 7. b4 {[%clk 0:02:57]}  cxd4 {[%clk 0:02:58]} 8. cxd4 {[%clk 0:02:58]}  Nf5 {[%clk 0:02:58]} 9. Bb2 {[%clk 0:02:58]}  Bd7 {[%clk 0:02:58]} 10. g4 {[%clk 0:02:58]}  Nfe7 {[%clk 0:02:58]} 11. Nc3 {[%clk 0:02:58]}  Ng6 {[%clk 0:02:57]} 12. Na4 {[%clk 0:02:57]}  Qd8 {[%clk 0:02:57]} 13. h4 {[%clk 0:02:57]}  h5 {[%clk 0:02:52]} 14. g5 {[%clk 0:02:57]}  Be7 {[%clk 0:02:48]} 15. Rc1 {[%clk 0:02:56]}  f6 {[%clk 0:02:32]} 16. Qd2 {[%clk 0:02:31]}  fxe5 {[%clk 0:02:30]} 17. dxe5 {[%clk 0:02:27]}  O-O {[%clk 0:02:27]} 18. Be2 {[%clk 0:02:17]}  Rxf3 {[%clk 0:02:25]} 19. Bxf3 {[%clk 0:02:16]}  Ncxe5 {[%clk 0:02:25]} 20. Bxd5 {[%clk 0:02:00]}  exd5 {[%clk 0:01:59]} 21. Qxd5+ {[%clk 0:01:59]}  Kh7 {[%clk 0:01:59]} 22. Bxe5 {[%clk 0:01:57]}  Bxa4 {[%clk 0:02:00]} 23. Qxd8 {[%clk 0:01:54]}  Rxd8 {[%clk 0:02:00]} 24. Bg3 {[%clk 0:01:54]}  Bc6 {[%clk 0:01:58]} 25. O-O {[%clk 0:01:53]}  Rd3 {[%clk 0:01:53]} 26. Ra1 {[%clk 0:01:37]}  Bd6 {[%clk 0:01:52]} 27. Rfd1 {[%clk 0:01:36]}  Rxd1+ {[%clk 0:01:51]} 28. Rxd1 {[%clk 0:01:37]}  Bxg3 {[%clk 0:01:52]} 29. fxg3 {[%clk 0:01:38]}  Ne5 {[%clk 0:01:53]} 30. Kf2 {[%clk 0:01:36]}  Kg6 {[%clk 0:01:52]} 31. Rc1 {[%clk 0:01:23]}  Nd3+ {[%clk 0:01:50]} 0-1

[Event "January 9 Early 2024"]
[Site "https://www.chess.com"]
[Date "2024.01.11"]
[Round "5"]
[White "Niedbala, Bartlomiej"]
[Black "Kadric, Denis"]
[Result "0-1"]
[Board "23"]
[TimeControl "180+1"]
[WhiteFideId "21834008"]
[BlackFideId "14403803"]
[WhiteElo "2680"]
[BlackElo "2909"]
[WhiteTeam "POL"]
[BlackTeam "MNE"]
[WhiteClock "0:00:40"]
[BlackClock "0:02:11"]

1. e4 {[%clk 0:03:00]}  d6 {[%clk 0:03:00]} 2. d4 {[%clk 0:02:58]}  Nf6 {[%clk 0:03:01]} 3. Nc3 {[%clk 0:02:58]}  e5 {[%clk 0:03:01]} 4. Nf3 {[%clk 0:02:58]}  Nbd7 {[%clk 0:03:01]} 5. Bc4 {[%clk 0:02:59]}  Be7 {[%clk 0:03:02]} 6. a4 {[%clk 0:02:58]}  O-O {[%clk 0:03:02]} 7. O-O {[%clk 0:02:59]}  c6 {[%clk 0:03:03]} 8. Re1 {[%clk 0:02:59]}  h6 {[%clk 0:03:03]} 9. h3 {[%clk 0:02:59]}  Re8 {[%clk 0:03:04]} 10. Be3 {[%clk 0:03:00]}  exd4 {[%clk 0:03:05]} 11. Nxd4 {[%clk 0:02:59]}  Bf8 {[%clk 0:03:05]} 12. Bf4 {[%clk 0:02:51]}  Nc5 {[%clk 0:03:05]} 13. Qf3 {[%clk 0:02:45]}  Ne6 {[%clk 0:03:05]} 14. Nxe6 {[%clk 0:02:30]}  Bxe6 {[%clk 0:03:06]} 15. Bxe6 {[%clk 0:02:24]}  Rxe6 {[%clk 0:03:07]} 16. e5 {[%clk 0:02:13]}  Qe8 {[%clk 0:02:54]} 17. Bg3 {[%clk 0:01:03]}  dxe5 {[%clk 0:02:53]} 18. Re2 {[%clk 0:00:59]}  e4 {[%clk 0:02:46]} 19. Qf5 {[%clk 0:00:53]}  Bb4 {[%clk 0:02:39]} 20. Rd1 {[%clk 0:00:48]}  Bxc3 {[%clk 0:02:13]} 21. bxc3 {[%clk 0:00:48]}  Rd8 {[%clk 0:02:13]} 22. Red2 {[%clk 0:00:42]}  Rxd2 {[%clk 0:02:10]} 23. Rxd2 {[%clk 0:00:43]}  e3 {[%clk 0:02:10]} 24. fxe3 {[%clk 0:00:40]}  Ne4 {[%clk 0:02:11]} 0-1

[Event "January 9 Early 2024"]
[Site "https://www.chess.com"]
[Date "2024.01.11"]
[Round "5"]
[White "Garrido, Denis"]
[Black "Putri, Regita Desyari"]
[Result "0-1"]
[Board "24"]
[TimeControl "180+1"]
[WhiteFideId "601217"]
[BlackFideId "7109083"]
[WhiteElo "2387"]
[BlackElo "2221"]
[WhiteTeam "FRA"]
[BlackTeam "INA"]
[WhiteClock "0:01:46"]
[BlackClock "0:01:17"]

1. e4 {[%clk 0:03:00]}  c5 {[%clk 0:02:59]} 2. Nf3 {[%clk 0:02:59]}  Nc6 {[%clk 0:02:57]} 3. Bb5 {[%clk 0:02:59]}  g6 {[%clk 0:02:54]} 4. O-O {[%clk 0:02:59]}  Bg7 {[%clk 0:02:54]} 5. Nc3 {[%clk 0:02:59]}  a6 {[%clk 0:02:51]} 6. Bxc6 {[%clk 0:02:59]}  bxc6 {[%clk 0:02:51]} 7. d3 {[%clk 0:02:52]}  d6 {[%clk 0:02:51]} 8. h3 {[%clk 0:02:50]}  Nf6 {[%clk 0:02:51]} 9. Be3 {[%clk 0:02:49]}  e5 {[%clk 0:02:50]} 10. Qd2 {[%clk 0:02:48]}  O-O {[%clk 0:02:49]} 11. Bh6 {[%clk 0:02:41]}  Rb8 {[%clk 0:02:44]} 12. b3 {[%clk 0:02:41]}  Re8 {[%clk 0:02:43]} 13. Bxg7 {[%clk 0:02:40]}  Kxg7 {[%clk 0:02:44]} 14. Nh2 {[%clk 0:02:38]}  Nh5 {[%clk 0:02:41]} 15. Ne2 {[%clk 0:02:37]}  Qf6 {[%clk 0:01:59]} 16. Ng3 {[%clk 0:02:14]}  Nf4 {[%clk 0:01:57]} 17. c3 {[%clk 0:01:59]}  h5 {[%clk 0:01:50]} 18. Rad1 {[%clk 0:01:57]}  Qg5 {[%clk 0:01:33]} 19. Nf3 {[%clk 0:01:54]}  Qf6 {[%clk 0:01:31]} 20. Rfe1 {[%clk 0:01:51]}  Nxh3+ {[%clk 0:01:28]} 21. gxh3 {[%clk 0:01:51]}  Qxf3 {[%clk 0:01:28]} 22. Re3 {[%clk 0:01:51]}  Qf6 {[%clk 0:01:28]} 23. Kh2 {[%clk 0:01:50]}  Qf4 {[%clk 0:01:20]} 24. Rg1 {[%clk 0:01:49]}  h4 {[%clk 0:01:19]} 25. Qe2 {[%clk 0:01:45]}  hxg3+ {[%clk 0:01:18]} 26. Rexg3 {[%clk 0:01:46]}  Rh8 {[%clk 0:01:17]} 0-1

[Event "January 9 Early 2024"]
[Site "https://www.chess.com"]
[Date "2024.01.11"]
[Round "5"]
[White "Yeremyan, Alen"]
[Black "Begunov, Konstantin"]
[Result "1-0"]
[Board "25"]
[TimeControl "180+1"]
[WhiteFideId "13308998"]
[BlackFideId "4118510"]
[WhiteElo "2776"]
[BlackElo "2482"]
[WhiteTeam "ARM"]
[BlackTeam "RUS"]
[WhiteClock "0:02:23"]
[BlackClock "0:00:11"]

1. e4 {[%clk 0:03:00]}  c5 {[%clk 0:02:59]} 2. Nc3 {[%clk 0:03:01]}  d6 {[%clk 0:02:59]} 3. f4 {[%clk 0:03:00]}  g6 {[%clk 0:02:58]} 4. Nf3 {[%clk 0:03:00]}  Bg7 {[%clk 0:02:59]} 5. Bc4 {[%clk 0:03:01]}  Nc6 {[%clk 0:02:57]} 6. O-O {[%clk 0:03:02]}  a6 {[%clk 0:02:51]} 7. a4 {[%clk 0:02:57]}  Nf6 {[%clk 0:02:43]} 8. d3 {[%clk 0:02:52]}  Bg4 {[%clk 0:02:40]} 9. h3 {[%clk 0:02:50]}  Bxf3 {[%clk 0:02:39]} 10. Qxf3 {[%clk 0:02:51]}  Nd4 {[%clk 0:02:39]} 11. Qf2 {[%clk 0:02:52]}  O-O {[%clk 0:02:38]} 12. Be3 {[%clk 0:02:52]}  Nd7 {[%clk 0:02:36]} 13. Rab1 {[%clk 0:02:49]}  Rb8 {[%clk 0:02:32]} 14. Ba2 {[%clk 0:02:42]}  b5 {[%clk 0:02:26]} 15. axb5 {[%clk 0:02:43]}  axb5 {[%clk 0:02:27]} 16. f5 {[%clk 0:02:44]}  b4 {[%clk 0:02:22]} 17. fxg6 {[%clk 0:02:39]}  bxc3 {[%clk 0:02:12]} 18. Bxf7+ {[%clk 0:02:36]}  Kh8 {[%clk 0:02:10]} 19. Qh4 {[%clk 0:02:36]}  h6 {[%clk 0:01:44]} 20. Bxh6 {[%clk 0:02:34]}  Ne2+ {[%clk 0:01:13]} 21. Kh1 {[%clk 0:02:33]}  Ng3+ {[%clk 0:01:06]} 22. Kh2 {[%clk 0:02:33]}  Nf6 {[%clk 0:00:17]} 23. Rxf6 {[%clk 0:02:26]}  Bxf6 {[%clk 0:00:12]} 24. Bg5+ {[%clk 0:02:22]}  Kg7 {[%clk 0:00:11]} 25. Qh6# {[%clk 0:02:23]} 1-0

[Event "January 9 Early 2024"]
[Site "https://www.chess.com"]
[Date "2024.01.11"]
[Round "5"]
[White "Bachmann, Axel"]
[Black "Srihari L R"]
[Result "1-0"]
[Board "28"]
[TimeControl "180+1"]
[WhiteFideId "3700488"]
[BlackFideId "46617116"]
[WhiteElo "2901"]
[BlackElo "2676"]
[WhiteTeam "PAR"]
[BlackTeam "IND"]
[WhiteClock "0:01:01"]
[BlackClock "0:01:33"]

1. e4 {[%clk 0:03:00]}  c5 {[%clk 0:02:56]} 2. Nf3 {[%clk 0:03:00]}  d6 {[%clk 0:02:55]} 3. d4 {[%clk 0:02:55]}  cxd4 {[%clk 0:02:55]} 4. Nxd4 {[%clk 0:02:56]}  Nf6 {[%clk 0:02:55]} 5. Nc3 {[%clk 0:02:56]}  Nc6 {[%clk 0:02:56]} 6. Bg5 {[%clk 0:02:45]}  e6 {[%clk 0:02:55]} 7. Qd2 {[%clk 0:02:43]}  Be7 {[%clk 0:02:54]} 8. O-O-O {[%clk 0:02:43]}  a6 {[%clk 0:02:54]} 9. h4 {[%clk 0:02:42]}  Bd7 {[%clk 0:02:52]} 10. f3 {[%clk 0:02:41]}  b5 {[%clk 0:02:51]} 11. Kb1 {[%clk 0:02:38]}  Qb6 {[%clk 0:02:45]} 12. Nxc6 {[%clk 0:02:30]}  Bxc6 {[%clk 0:02:44]} 13. Ne2 {[%clk 0:02:31]}  h6 {[%clk 0:02:42]} 14. Be3 {[%clk 0:02:26]}  Qc7 {[%clk 0:02:42]} 15. Nd4 {[%clk 0:02:25]}  Bb7 {[%clk 0:02:40]} 16. g4 {[%clk 0:02:24]}  Nd7 {[%clk 0:02:38]} 17. g5 {[%clk 0:02:24]}  hxg5 {[%clk 0:02:38]} 18. Bxg5 {[%clk 0:02:22]}  Ne5 {[%clk 0:02:37]} 19. Be2 {[%clk 0:01:56]}  O-O-O {[%clk 0:02:30]} 20. Rh3 {[%clk 0:01:46]}  Kb8 {[%clk 0:02:25]} 21. f4 {[%clk 0:01:42]}  Bxg5 {[%clk 0:02:22]} 22. fxg5 {[%clk 0:01:27]}  Bxe4 {[%clk 0:02:21]} 23. a4 {[%clk 0:01:26]}  b4 {[%clk 0:02:07]} 24. Qxb4+ {[%clk 0:01:25]}  Qb7 {[%clk 0:02:07]} 25. Qa5 {[%clk 0:01:18]}  Nc6 {[%clk 0:01:57]} 26. Nxc6+ {[%clk 0:01:15]}  Qxc6 {[%clk 0:01:57]} 27. Rc3 {[%clk 0:01:16]}  Qd7 {[%clk 0:01:44]} 28. Rd4 {[%clk 0:01:02]}  Rxh4 {[%clk 0:01:36]} 29. Rb3+ {[%clk 0:01:02]}  Ka8 {[%clk 0:01:33]} 30. Rxe4 {[%clk 0:01:01]} 1-0

[Event "January 9 Early 2024"]
[Site "https://www.chess.com"]
[Date "2024.01.11"]
[Round "5"]
[White "Novik, Maxim"]
[Black "Ozates, Tuna"]
[Result "0-1"]
[Board "30"]
[TimeControl "180+1"]
[WhiteFideId "4102924"]
[BlackFideId "6354521"]
[WhiteElo "2482"]
[BlackElo "2675"]
[WhiteTeam "LTU"]
[BlackTeam "TUR"]
[WhiteClock "0:00:14"]
[BlackClock "0:02:22"]

1. e4 {[%clk 0:03:00]}  e5 {[%clk 0:03:00]} 2. Nf3 {[%clk 0:02:56]}  Nc6 {[%clk 0:02:59]} 3. Bc4 {[%clk 0:02:54]}  Bc5 {[%clk 0:02:58]} 4. d3 {[%clk 0:02:54]}  Nf6 {[%clk 0:02:57]} 5. c3 {[%clk 0:02:53]}  d6 {[%clk 0:02:57]} 6. O-O {[%clk 0:02:53]}  h6 {[%clk 0:02:56]} 7. Re1 {[%clk 0:02:47]}  a5 {[%clk 0:02:56]} 8. Nbd2 {[%clk 0:02:45]}  a4 {[%clk 0:02:53]} 9. Bb5 {[%clk 0:02:38]}  Bd7 {[%clk 0:02:53]} 10. Bxa4 {[%clk 0:02:35]}  Rxa4 {[%clk 0:02:54]} 11. Qxa4 {[%clk 0:02:33]}  Nb4 {[%clk 0:02:55]} 12. Qd1 {[%clk 0:01:24]}  Nxd3 {[%clk 0:02:54]} 13. Rf1 {[%clk 0:01:24]}  Nxf2 {[%clk 0:02:37]} 14. Qe2 {[%clk 0:01:13]}  N6g4 {[%clk 0:02:29]} 15. Nb3 {[%clk 0:01:06]}  Nh3+ {[%clk 0:02:27]} 16. Kh1 {[%clk 0:01:04]}  Ngf2+ {[%clk 0:02:27]} 17. Rxf2 {[%clk 0:01:02]}  Nxf2+ {[%clk 0:02:28]} 18. Kg1 {[%clk 0:01:02]}  Nxe4+ {[%clk 0:02:28]} 19. Nxc5 {[%clk 0:00:56]}  Nxc5 {[%clk 0:02:28]} 20. Be3 {[%clk 0:00:31]}  Ne6 {[%clk 0:02:28]} 21. c4 {[%clk 0:00:28]}  O-O {[%clk 0:02:27]} 22. Rf1 {[%clk 0:00:23]}  f5 {[%clk 0:02:25]} 23. b3 {[%clk 0:00:21]}  Bc6 {[%clk 0:02:26]} 24. Qf2 {[%clk 0:00:17]}  f4 {[%clk 0:02:25]} 25. Bc1 {[%clk 0:00:17]}  e4 {[%clk 0:02:25]} 26. Nd4 {[%clk 0:00:16]}  e3 {[%clk 0:02:22]} 27. Qb2 {[%clk 0:00:15]}  Nxd4 {[%clk 0:02:22]} 28. Qxd4 {[%clk 0:00:14]}  Qg5 {[%clk 0:02:22]} 0-1

[Event "January 9 Early 2024"]
[Site "https://www.chess.com"]
[Date "2024.01.11"]
[Round "5"]
[White "Matthes, Aaron"]
[Black "Tabuenca Mendataurigoitia, Daniel"]
[Result "1-0"]
[Board "31"]
[TimeControl "180+1"]
[WhiteFideId "16227310"]
[BlackFideId "24563617"]
[WhiteElo "2401"]
[BlackElo "2545"]
[WhiteTeam "GER"]
[BlackTeam "ESP"]
[WhiteClock "0:01:17"]
[BlackClock "0:01:40"]

1. Nf3 {[%clk 0:02:53]}  d6 {[%clk 0:02:58]} 2. d4 {[%clk 0:02:53]}  g6 {[%clk 0:02:57]} 3. g3 {[%clk 0:02:52]}  Bg7 {[%clk 0:02:57]} 4. Bg2 {[%clk 0:02:53]}  Nf6 {[%clk 0:02:57]} 5. O-O {[%clk 0:02:54]}  O-O {[%clk 0:02:57]} 6. b3 {[%clk 0:02:54]}  c5 {[%clk 0:02:49]} 7. Bb2 {[%clk 0:02:52]}  cxd4 {[%clk 0:02:48]} 8. Nxd4 {[%clk 0:02:51]}  Qc7 {[%clk 0:02:46]} 9. c4 {[%clk 0:02:49]}  Bd7 {[%clk 0:02:39]} 10. Nc3 {[%clk 0:02:47]}  e5 {[%clk 0:02:35]} 11. Ndb5 {[%clk 0:02:46]}  Bxb5 {[%clk 0:02:28]} 12. Nxb5 {[%clk 0:02:46]}  Qe7 {[%clk 0:02:28]} 13. Qxd6 {[%clk 0:02:40]}  Qxd6 {[%clk 0:02:23]} 14. Nxd6 {[%clk 0:02:41]}  Nc6 {[%clk 0:02:22]} 15. Nxb7 {[%clk 0:02:39]}  Nd4 {[%clk 0:02:19]} 16. e3 {[%clk 0:02:33]}  Nc2 {[%clk 0:02:18]} 17. Rac1 {[%clk 0:02:27]}  Nb4 {[%clk 0:02:18]} 18. Ba3 {[%clk 0:02:14]}  Nxa2 {[%clk 0:02:13]} 19. Rc2 {[%clk 0:02:14]}  Rfe8 {[%clk 0:02:06]} 20. Rxa2 {[%clk 0:02:03]}  e4 {[%clk 0:02:06]} 21. Nd6 {[%clk 0:01:57]}  Re6 {[%clk 0:02:04]} 22. Nb5 {[%clk 0:01:53]}  Ne8 {[%clk 0:01:53]} 23. Rd1 {[%clk 0:01:49]}  a6 {[%clk 0:01:51]} 24. Nd4 {[%clk 0:01:41]}  Bxd4 {[%clk 0:01:50]} 25. Rxd4 {[%clk 0:01:40]}  f5 {[%clk 0:01:51]} 26. Bf1 {[%clk 0:01:36]}  Rb8 {[%clk 0:01:50]} 27. b4 {[%clk 0:01:34]}  Nf6 {[%clk 0:01:50]} 28. b5 {[%clk 0:01:33]}  Ng4 {[%clk 0:01:48]} 29. Kg2 {[%clk 0:01:17]}  Ne5 {[%clk 0:01:46]} 30. Bd6 {[%clk 0:01:17]}  Rc8 {[%clk 0:01:41]} 31. Bxe5 {[%clk 0:01:16]}  Rxe5 {[%clk 0:01:41]} 32. bxa6 {[%clk 0:01:16]}  Ra8 {[%clk 0:01:40]} 33. a7 {[%clk 0:01:16]}  Re7 {[%clk 0:01:40]} 34. c5 {[%clk 0:01:16]}  Rexa7 {[%clk 0:01:39]} 35. Rxa7 {[%clk 0:01:16]}  Rxa7 {[%clk 0:01:40]} 36. c6 {[%clk 0:01:16]}  Kf8 {[%clk 0:01:40]} 37. Rd7 {[%clk 0:01:15]}  Rxd7 {[%clk 0:01:40]} 38. cxd7 {[%clk 0:01:16]}  Ke7 {[%clk 0:01:41]} 39. Bb5 {[%clk 0:01:16]}  h6 {[%clk 0:01:40]} 40. h4 {[%clk 0:01:16]}  Kd8 {[%clk 0:01:40]} 41. Kf1 {[%clk 0:01:16]}  Kc7 {[%clk 0:01:40]} 42. Ke2 {[%clk 0:01:17]}  g5 {[%clk 0:01:40]} 43. Kd2 {[%clk 0:01:16]}  gxh4 {[%clk 0:01:39]} 44. gxh4 {[%clk 0:01:16]}  Kd8 {[%clk 0:01:40]} 45. Kc3 {[%clk 0:01:16]}  Ke7 {[%clk 0:01:40]} 46. Kd4 {[%clk 0:01:17]}  Kd8 {[%clk 0:01:40]} 47. Ke5 {[%clk 0:01:17]} 1-0

[Event "January 9 Early 2024"]
[Site "https://www.chess.com"]
[Date "2024.01.11"]
[Round "5"]
[White "Radjabov, Teimour"]
[Black "Mizzi, Jack"]
[Result "1-0"]
[Board "32"]
[TimeControl "180+1"]
[WhiteFideId "13400924"]
[BlackFideId "5602521"]
[WhiteElo "3019"]
[BlackElo "2500"]
[WhiteTeam "AZE"]
[BlackTeam "MLT"]
[WhiteClock "0:01:52"]
[BlackClock "0:00:13"]

1. c4 {[%clk 0:02:59]}  e5 {[%clk 0:02:58]} 2. Nc3 {[%clk 0:02:59]}  f5 {[%clk 0:02:58]} 3. e4 {[%clk 0:02:56]}  d6 {[%clk 0:02:53]} 4. Nf3 {[%clk 0:02:52]}  Nf6 {[%clk 0:02:52]} 5. exf5 {[%clk 0:02:40]}  Bxf5 {[%clk 0:02:50]} 6. d4 {[%clk 0:02:40]}  e4 {[%clk 0:02:33]} 7. Ng5 {[%clk 0:02:39]}  h6 {[%clk 0:02:25]} 8. Nh3 {[%clk 0:02:39]}  c5 {[%clk 0:02:02]} 9. d5 {[%clk 0:02:36]}  Na6 {[%clk 0:01:39]} 10. Nf4 {[%clk 0:02:34]}  Qd7 {[%clk 0:01:38]} 11. Be2 {[%clk 0:02:33]}  g5 {[%clk 0:01:23]} 12. Nh5 {[%clk 0:02:14]}  Qf7 {[%clk 0:01:02]} 13. O-O {[%clk 0:02:12]}  Be7 {[%clk 0:00:59]} 14. Ng3 {[%clk 0:02:05]}  Bg6 {[%clk 0:00:59]} 15. f4 {[%clk 0:02:02]}  exf3 {[%clk 0:00:54]} 16. Bxf3 {[%clk 0:02:02]}  O-O {[%clk 0:00:49]} 17. a3 {[%clk 0:02:02]}  b6 {[%clk 0:00:35]} 18. Be4 {[%clk 0:02:00]}  Qh7 {[%clk 0:00:28]} 19. Bf5 {[%clk 0:01:57]}  Nc7 {[%clk 0:00:26]} 20. Bd2 {[%clk 0:01:55]}  h5 {[%clk 0:00:20]} 21. Qc2 {[%clk 0:01:52]}  h4 {[%clk 0:00:13]} 22. Bxg6 {[%clk 0:01:52]} 1-0

[Event "January 9 Early 2024"]
[Site "https://www.chess.com"]
[Date "2024.01.11"]
[Round "5"]
[White "Parfenov, Viktor N."]
[Black "De Souza, Cristiano Gomes"]
[Result "0-1"]
[Board "34"]
[TimeControl "180+1"]
[WhiteFideId "4165969"]
[BlackFideId "2151758"]
[WhiteElo "2518"]
[BlackElo "2273"]
[WhiteTeam "RUS"]
[BlackTeam "BRA"]
[WhiteClock "0:00:42"]
[BlackClock "0:01:37"]

1. d4 {[%clk 0:02:45]}  Nf6 {[%clk 0:02:59]} 2. c4 {[%clk 0:02:45]}  g6 {[%clk 0:02:58]} 3. Nc3 {[%clk 0:02:44]}  Bg7 {[%clk 0:02:59]} 4. e4 {[%clk 0:02:45]}  d6 {[%clk 0:02:59]} 5. f4 {[%clk 0:02:44]}  O-O {[%clk 0:03:00]} 6. Nf3 {[%clk 0:02:44]}  e5 {[%clk 0:03:00]} 7. fxe5 {[%clk 0:02:42]}  dxe5 {[%clk 0:03:00]} 8. d5 {[%clk 0:02:42]}  Nbd7 {[%clk 0:02:59]} 9. Be3 {[%clk 0:02:40]}  Ng4 {[%clk 0:02:54]} 10. Bg1 {[%clk 0:02:40]}  f5 {[%clk 0:02:53]} 11. h3 {[%clk 0:02:34]}  Nh6 {[%clk 0:02:49]} 12. Qd2 {[%clk 0:02:26]}  fxe4 {[%clk 0:02:47]} 13. Nxe4 {[%clk 0:02:25]}  Nf5 {[%clk 0:02:48]} 14. g4 {[%clk 0:01:58]}  Nd4 {[%clk 0:02:43]} 15. Nxd4 {[%clk 0:01:54]}  exd4 {[%clk 0:02:43]} 16. Bxd4 {[%clk 0:01:54]}  Ne5 {[%clk 0:02:42]} 17. Be2 {[%clk 0:01:49]}  Qh4+ {[%clk 0:02:29]} 18. Bf2 {[%clk 0:01:35]}  Qe7 {[%clk 0:02:27]} 19. O-O {[%clk 0:01:31]}  b6 {[%clk 0:01:59]} 20. Rae1 {[%clk 0:01:27]}  h5 {[%clk 0:01:50]} 21. Ng5 {[%clk 0:00:57]}  hxg4 {[%clk 0:01:47]} 22. Bxg4 {[%clk 0:00:55]}  Bxg4 {[%clk 0:01:42]} 23. Rxe5 {[%clk 0:00:47]}  Bxe5 {[%clk 0:01:38]} 24. hxg4 {[%clk 0:00:42]}  Bf4 {[%clk 0:01:37]} 0-1

[Event "January 9 Early 2024"]
[Site "https://www.chess.com"]
[Date "2024.01.11"]
[Round "5"]
[White "Travkina, Anastasia"]
[Black "Tuncer, Tuna"]
[Result "0-1"]
[Board "37"]
[TimeControl "180+1"]
[WhiteFideId "24129151"]
[BlackFideId "6349269"]
[WhiteElo "2436"]
[BlackElo "2625"]
[WhiteTeam "RUS"]
[BlackTeam "TUR"]
[WhiteClock "0:00:56"]
[BlackClock "0:00:56"]

1. e4 {[%clk 0:03:00]}  g6 {[%clk 0:02:59]} 2. d4 {[%clk 0:03:00]}  Bg7 {[%clk 0:03:00]} 3. Nc3 {[%clk 0:03:01]}  d6 {[%clk 0:03:00]} 4. f4 {[%clk 0:03:02]}  a6 {[%clk 0:03:00]} 5. a4 {[%clk 0:03:01]}  Nc6 {[%clk 0:02:58]} 6. Be3 {[%clk 0:02:59]}  Nf6 {[%clk 0:02:51]} 7. d5 {[%clk 0:02:57]}  Nb4 {[%clk 0:02:50]} 8. Bc4 {[%clk 0:02:47]}  Ng4 {[%clk 0:02:37]} 9. Bd2 {[%clk 0:02:32]}  c6 {[%clk 0:02:36]} 10. a5 {[%clk 0:02:19]}  cxd5 {[%clk 0:02:26]} 11. Nxd5 {[%clk 0:02:15]}  Nxd5 {[%clk 0:02:24]} 12. Bxd5 {[%clk 0:02:14]}  O-O {[%clk 0:02:09]} 13. h3 {[%clk 0:02:08]}  Nf6 {[%clk 0:02:09]} 14. Bc3 {[%clk 0:01:56]}  Nxd5 {[%clk 0:02:08]} 15. exd5 {[%clk 0:01:51]}  Bxc3+ {[%clk 0:02:05]} 16. bxc3 {[%clk 0:01:52]}  e5 {[%clk 0:01:54]} 17. Ne2 {[%clk 0:01:48]}  Qh4+ {[%clk 0:01:40]} 18. g3 {[%clk 0:01:46]}  Qe7 {[%clk 0:01:32]} 19. Kf2 {[%clk 0:01:20]}  Re8 {[%clk 0:01:31]} 20. Re1 {[%clk 0:01:19]}  Bxh3 {[%clk 0:01:30]} 21. Rb1 {[%clk 0:01:12]}  Qc7 {[%clk 0:01:27]} 22. Qd3 {[%clk 0:01:08]}  Bf5 {[%clk 0:01:20]} 23. Qd2 {[%clk 0:01:02]}  Qc5+ {[%clk 0:01:06]} 24. Kg2 {[%clk 0:00:59]}  Be4+ {[%clk 0:01:03]} 25. Kh2 {[%clk 0:00:58]}  Qf2+ {[%clk 0:01:03]} 26. Kh3 {[%clk 0:00:56]}  Qg2+ {[%clk 0:00:56]} 0-1

[Event "January 9 Early 2024"]
[Site "https://www.chess.com"]
[Date "2024.01.11"]
[Round "5"]
[White "Rajdeep Sarkar"]
[Black "Viana, Valeria"]
[Result "1-0"]
[Board "39"]
[TimeControl "180+1"]
[WhiteFideId "25007963"]
[BlackFideId "8407100"]
[WhiteElo "2393"]
[BlackElo "2094"]
[WhiteTeam "IND"]
[BlackTeam "HON"]
[WhiteClock "0:01:38"]
[BlackClock "0:00:11"]

1. Nf3 {[%clk 0:02:59]}  d5 {[%clk 0:02:57]} 2. c4 {[%clk 0:02:58]}  c6 {[%clk 0:02:54]} 3. d4 {[%clk 0:02:58]}  Nf6 {[%clk 0:02:54]} 4. Nc3 {[%clk 0:02:57]}  e6 {[%clk 0:02:52]} 5. Bg5 {[%clk 0:02:56]}  dxc4 {[%clk 0:02:47]} 6. a4 {[%clk 0:02:50]}  Bb4 {[%clk 0:02:43]} 7. e3 {[%clk 0:02:44]}  b5 {[%clk 0:02:36]} 8. Qc2 {[%clk 0:02:37]}  h6 {[%clk 0:02:31]} 9. Bxf6 {[%clk 0:02:30]}  Qxf6 {[%clk 0:02:29]} 10. axb5 {[%clk 0:02:28]}  cxb5 {[%clk 0:02:27]} 11. Qe4 {[%clk 0:02:28]}  O-O {[%clk 0:01:58]} 12. Qxa8 {[%clk 0:02:27]}  Nd7 {[%clk 0:01:48]} 13. Qxa7 {[%clk 0:02:20]}  e5 {[%clk 0:01:38]} 14. Be2 {[%clk 0:02:15]}  exd4 {[%clk 0:01:32]} 15. Qxd4 {[%clk 0:02:13]}  Qg6 {[%clk 0:01:25]} 16. O-O {[%clk 0:02:03]}  Bxc3 {[%clk 0:01:02]} 17. bxc3 {[%clk 0:02:02]}  Nf6 {[%clk 0:00:56]} 18. Ne5 {[%clk 0:01:58]}  Qf5 {[%clk 0:00:45]} 19. Rab1 {[%clk 0:01:47]}  Re8 {[%clk 0:00:19]} 20. Rxb5 {[%clk 0:01:44]}  Nd7 {[%clk 0:00:17]} 21. f4 {[%clk 0:01:38]}  f6 {[%clk 0:00:12]} 22. Bxc4+ {[%clk 0:01:38]}  Kh8 {[%clk 0:00:11]} 23. Nf7+ {[%clk 0:01:38]} 1-0